[Event "SixDays Budapest March IM A 2025"]
[Site "Budapest"]
[Date "2025.03.25"]
[Round "3.1"]
[White "Heimisson, Hilmir Freyr"]
[Black "Ilincic, Zlatko"]
[Result "0-1"]
[Annotator "RC"]
[ECO "B20"]
[WhiteElo "2388"]
[BlackElo "2251"]
[PlyCount "128"]
[EventDate "2025.03.23"]
[EventCountry "HUN"]
[SourceTitle "playchess.com"]
[Source "ChessBase"]
[SourceQuality "1"]
[TimeControl "5400+30"]

1. e4 {[%emt 0:02:51]} c5 {[%emt 0:00:56]} 2. d4 {[%emt 0:00:08]} cxd4 {[%emt 0:00:21]} 3. Qxd4 {[%emt 0:00:20]} Nc6 {[%emt 0:00:46]} 4. Qd3 {[%emt 0:00:07]} Nf6 {[%emt 0:01:10]} 5. Nc3 {[%emt 0:00:10]} g6 {[%emt 0:00:46]} 6. Nf3 {[%emt 0:00:15]} d6 {[%emt 0:00:17]} 7. Be2 {[%emt 0:00:22]} Bg7 {[%emt 0:00:21]} 8. O-O {[%emt 0:00:10]} O-O {[%emt 0:00:10]} 9. Nd5 {[%emt 0:00:09]} Bg4 {[%emt 0:02:00]} 10. Bg5 {[%emt 0:05:23]} Bxf3 {[%emt 0:03:29]} 11. Bxf3 {[%emt 0:06:04]} Ne5 {[%emt 0:00:21]} 12. Qb3 {[%emt 0:02:57]} Nxf3+ {[%emt 0:00:21]} 13. Qxf3 {[%emt 0:00:13]} Nxd5 {[%emt 0:00:14]} 14. exd5 {[%emt 0:00:05]} Bxb2 {[%emt 0:07:46]} 15. Rab1 {[%emt 0:07:58]} Bf6 {[%emt 0:00:22]} 16. Bh6 {[%emt 0:10:49]} Re8 {[%emt 0:03:35]} 17. Rxb7 {[%emt 0:00:21]} Qc8 {[%emt 0:02:28]} 18. Qb3 {[%emt 0:05:56]} a5 {[%emt 0:03:49]} 19. Rb1 {[%emt 0:03:11]} a4 {[%emt 0:02:20]} 20. Qd3 {[%emt 0:03:04]} Qc3 {[%emt 0:07:39]} 21. Qxc3 {[%emt 0:03:05]} Bxc3 {[%emt 0:00:09]} 22. Rc7 {[%emt 0:01:06]} Bg7 {[%emt 0:05:23]} 23. Be3 {[%emt 0:01:37]} Bf6 {[%emt 0:01:27]} 24. Kf1 {[%emt 0:04:48]} Reb8 {[%emt 0:05:53]} 25. Rxb8+ {[%emt 0:02:29]} Rxb8 {[%emt 0:00:06]} 26. Ra7 {[%emt 0:00:05]} Kg7 {[%emt 0:01:24]} 27. Rxa4 {[%emt 0:02:59]} Rb2 {[%emt 0:00:25]} 28. c4 {[%emt 0:02:29]} g5 {[%emt 0:01:30]} 29. g4 {[%emt 0:14:08]} Kg6 {[%emt 0:02:40]} 30. Ke1 {[%emt 0:03:52]} h5 {[%emt 0:02:47]} 31. gxh5+ {[%emt 0:00:53]} Kxh5 {[%emt 0:00:09]} 32. Kd1 {[%emt 0:00:46]} Kg6 {[%emt 0:03:26]} 33. Ra8 {[%emt 0:10:21]} Rb4 {[%emt 0:02:15]} 34. a4 {[%emt 0:00:39]} Rxc4 {[%emt 0:00:09]} 35. Ke2 {[%emt 0:03:30]} Kf5 {[%emt 0:00:45]} 36. f3 {[%emt 0:02:38]} Ke5 {[%emt 0:00:43]} 37. Kd3 {[%emt 0:00:56]} Rh4 {[%emt 0:03:29]} 38. a5 {[%emt 0:00:29]} Ra4 {[%emt 0:01:31]} 39. a6 {[%emt 0:00:23]} Ra3+ {[%emt 0:01:32]} 40. Ke2 {[%emt 0:00:33]} Kxd5 {[%emt 0:00:07]} 41. a7 {[%emt 0:00:52]} Bd4 {[%emt 0:00:24]} 42. Bxg5 {[%emt 0:00:39]} f6 {[%emt 0:00:33]} 43. Bd2 {[%emt 0:00:33]} Rxa7 {[%emt 0:00:10]} 44. Rxa7 {[%emt 0:01:14]} Bxa7 {[%emt 0:00:07]} 45. h4 {[%emt 0:00:06]} e5 {[%emt 0:05:39]} 46. f4 {[%emt 0:00:52]} Ke6 {[%emt 0:00:40]} 47. Kf3 {[%emt 0:00:28]} f5 {[%emt 0:00:11]} 48. fxe5 {[%emt 0:00:28]} dxe5 {[%emt 0:00:06]} 49. h5 {[%emt 0:00:42]} Kf6 {[%emt 0:00:11]} 50. Kg3 {[%emt 0:00:29]} Bd4 {[%emt 0:01:50]} 51. Kh4 {[%emt 0:00:21]} Bf2+ {[%emt 0:00:38]} 52. Kh3 {[%emt 0:00:00]} e4 {[%emt 0:00:23]} 53. Bf4 {[%emt 0:00:33]} Be1 {[%emt 0:00:46]} 54. Bc1 {[%emt 0:01:11]} Bc3 {[%emt 0:02:21]} 55. Kh4 {[%emt 0:00:23]} Be5 {[%emt 0:00:45]} 56. h6 {[%emt 0:00:33]} Kg6 {[%emt 0:00:14]} 57. Bd2 {[%emt 0:00:41]} Bd6 {[%emt 0:00:19]} 58. Bc1 {[%emt 0:00:27]} Bf8 {[%emt 0:00:10]} 59. h7 {[%emt 0:00:11]} Be7+ {[%emt 0:00:06]} 60. Kg3 {[%emt 0:00:05]} Kxh7 {[%emt 0:00:06]} 61. Kf4 {[%emt 0:00:14]} Kg6 {[%emt 0:00:28]} 62. Ke5 {[%emt 0:00:22]} Bf6+ {[%emt 0:00:23]} 63. Kd5 {[%emt 0:01:10]} Bg5 {[%emt 0:00:10]} 64. Bb2 {[%emt 0:00:08]} e3 {[%emt 0:00:46]} 0-1

[Event "SixDays Budapest March IM A 2025"]
[Site "Budapest"]
[Date "2025.03.25"]
[Round "3.2"]
[White "Li, Yilin"]
[Black "Karacsonyi, Bank"]
[Result "1-0"]
[Annotator "TA"]
[ECO "B28"]
[WhiteElo "1904"]
[BlackElo "2162"]
[PlyCount "101"]
[EventDate "2025.03.23"]
[EventCountry "HUN"]
[SourceTitle "playchess.com"]
[Source "ChessBase"]
[SourceQuality "1"]
[TimeControl "5400+30"]

{[%evp 10,101,32,12,25,19,55,54,66,72,79,79,73,66,71,19,20,16,43,16,31,13,60,-7,-11,-18,-11,-22,26,21,39,35,29,20,15,20,0,6,79,0,0,0,0,0,4,14,0,0,0,4,31,0,0,0,287,321,577,543,703,680,737,722,689,743,640,773,764,748,795,788,756,686,681,653,666,646,797,808,715,841,812,835,1593,1412,1385,1224,1391,2153,2147,1911,1787,1791,1702,1178]} 1. e4 {[%emt 0:10:12]} c5 {[%emt 0:00:08]} 2. Nf3 {[%emt 0:00:25]} a6 {[%emt 0:00:09]} 3. c4 {[%emt 0:00:43]} Nc6 {[%emt 0:00:05]} 4. d4 {[%emt 0:00:08]} cxd4 {[%emt 0:00:05]} 5. Nxd4 {[%emt 0:00:04]} e5 {[%emt 0:00:10]} 6. Nc2 {[%emt 0:03:13]} Nf6 {[%emt 0:03:47] B28: Sicilian: 2 Nf3 a6 (O'Kelly Variation).} 7. Nc3 {[%emt 0:03:33]} Be7 {[%emt 0:04:22]} 8. Be3 {[%emt 0:02:51]} d6 {[%emt 0:07:05] White is slightly better.} 9. Be2 {[%emt 0:04:36]} O-O {[%emt 0:00:45]} 10. O-O {[%emt 0:14:51]} Be6 {[%emt 0:02:56]} 11. b3 {[%emt 0:05:45]} Nd7 {[%emt 0:15:37]} 12. g4 $146 {[%emt 0:08:41]} (12. f3 $16) (12. Nd5 f5 13. exf5 Bxf5 14. Qd2 Nc5 15. Rad1 Ne6 16. Bd3 Bxd3 17. Qxd3 Bg5 18. Bb6 {1-0 Howell,D (2663)-Simonovic,M (2115) Titled Tuesday intern op 31st Jan Late blitz 2023 (10)}) 12... Rb8 {[%emt 0:07:08]} 13. Kh1 {[%emt 0:05:44]} Qa5 {[%emt 0:02:55]} 14. Bd2 {[%emt 0:01:18]} Qc7 {[%emt 0:01:10]} 15. Ne3 {[%emt 0:04:30]} Qd8 {[%emt 0:07:22]} (15... Bg5 $11) 16. Ned5 {[%emt 0:02:35]} (16. Nf5 $14) 16... Bg5 $11 {[%emt 0:02:00]} 17. Be3 {[%emt 0:01:14]} Bxe3 {[%emt 0:02:05]} 18. fxe3 {[%emt 0:01:53]} Qg5 {[%emt 0:01:17]} (18... Na7 $142) 19. Qe1 {[%emt 0:05:12]} Qg6 {[%emt 0:07:32][%cal Od7c5]} 20. Qg3 {[%emt 0:07:53]} Nc5 {[%emt 0:00:00]} 21. Qg2 {[%emt 0:02:35]} Bxd5 {[%emt 0:04:33]} 22. exd5 {[%emt 0:02:46]} Nb4 {[%emt 0:00:26]} 23. Rac1 {[%emt 0:00:53]} e4 {[%emt 0:09:38]} (23... f6 $1 $11) 24. a3 {[%emt 0:04:13]} (24. Rf5 $16) 24... Nbd3 {[%emt 0:00:16]} 25. Rb1 {[%emt 0:00:46] [#]} Rfe8 {[%emt 0:03:48]} 26. Rf5 {[%emt 0:02:11]} (26. b4 $5 Nd7 $8 27. Rb3 $11) 26... Rbc8 {[%emt 0:04:41]} 27. h4 {[%emt 0:01:52]} Qh6 {[%emt 0:03:27][%csl LRe3,LRh4]} 28. Qg3 {[%emt 0:01:27] Black must now prevent g5.} f6 {[%emt 0:01:58]} 29. Kg2 {[%emt 0:01:08][%cal Ob1f1]} Re5 {[%emt 0:01:04]} 30. b4 {[%emt 0:01:34]} Nd7 {[%emt 0:00:59] Excellent horsemanship.} (30... Rxf5 $2 31. gxf5 $18) 31. Rxe5 {[%emt 0:00:36] Successful Defense White} N7xe5 {[%emt 0:01:10][%mdl 8192] [#] Black is now going downhill.} (31... N3xe5 $11 {and Black is okay.} 32. Nxe4 Nxc4) 32. Nxe4 $18 {[%emt 0:00:29]} Rxc4 $2 {[%emt 0:02:43]} (32... Rd8 {was necessary.} 33. Nxd6 (33. Bxd3 Nxd3 34. Nxd6 Qg6 $18) 33... Rxd6) 33. Nxd6 {[%emt 0:00:10] White is clearly winning.} Rc2 {[%emt 0:00:24]} 34. Nf5 {[%emt 0:00:40]} ({Not} 34. Kf1 g6 35. Nxb7 g5 $18 (35... Nc1 $2 36. Bd1 $16)) 34... Rxe2+ {[%emt 0:00:26]} 35. Kf1 {[%emt 0:00:18][%cal Bg2f1,Bf1f2,Bf2f3,Bf3e4,Be4d3,Bd3d4][%mdl 32]} Rf2+ {[%emt 0:01:34]} 36. Qxf2 $1 {[%emt 0:00:16]} Nxf2 {[%emt 0:00:13]} 37. Nxh6+ {[%emt 0:00:06]} gxh6 {[%emt 0:00:09]} 38. Kxf2 {[%emt 0:00:05]} Nxg4+ {[%emt 0:00:08][%mdl 4096] Endgame KR-KN} 39. Kf3 {[%emt 0:00:17]} Ne5+ {[%emt 0:00:05]} 40. Ke4 {[%emt 0:00:10]} Nc4 {[%emt 0:00:05]} 41. Ra1 {[%emt 0:00:46]} Kf7 {[%emt 0:00:10]} 42. a4 {[%emt 0:00:33]} Nd2+ {[%emt 0:00:17]} 43. Kd3 {[%emt 0:00:30]} Nf3 {[%emt 0:00:05]} 44. h5 {[%emt 0:00:22]} Ke7 {[%emt 0:00:03]} 45. b5 {[%emt 0:00:43]} Kd6 {[%emt 0:00:11]} 46. Rf1 {[%emt 0:00:35]} Ne5+ {[%emt 0:00:05]} 47. Kd4 {[%emt 0:00:27]} Nd7 {[%emt 0:00:17]} 48. bxa6 {[%emt 0:00:43]} bxa6 {[%emt 0:00:05]} 49. e4 {[%emt 0:00:22]} Ke7 {[%emt 0:00:06]} 50. Rg1 {[%emt 0:00:21]} Kf7 {[%emt 0:00:05] Dodges Rg7+} 51. Rb1 {[%emt 0:00:08] Weighted Error Value: White=0.10 (very precise) /Black=0.49  Loses game:     	---       	Black=1      Mistake:       	White=3     	Black=4      Inaccurate:     	White=2     	Black=3      OK:         	White=12    	Black=8      Best:        	White=3     	Black=1} 1-0

[Event "SixDays Budapest March IM A 2025"]
[Site "Budapest"]
[Date "2025.03.25"]
[Round "3.3"]
[White "Singh, Siddharth"]
[Black "Mrithyunjay Mahadevan"]
[Result "1-0"]
[Annotator "NA RC"]
[ECO "C55"]
[WhiteElo "2239"]
[BlackElo "2295"]
[PlyCount "97"]
[EventDate "2025.03.23"]
[EventCountry "HUN"]
[SourceTitle "playchess.com"]
[Source "ChessBase"]
[SourceQuality "1"]
[TimeControl "5400+30"]

1. e4 {[%emt 0:00:03]} e5 {[%emt 0:07:03]} 2. Nf3 {[%emt 0:00:08]} Nc6 {[%emt 0:00:07]} 3. Bc4 {[%emt 0:00:05]} Nf6 {[%emt 0:00:04]} 4. d3 {[%emt 0:00:12]} h6 {[%emt 0:00:07]} 5. O-O d6 {[%emt 0:00:04]} 6. a4 {[%emt 0:00:20]} g6 {[%emt 0:00:40]} 7. Nc3 Bg7 {[%emt 0:00:49]} 8. h3 {[%emt 0:00:41]} O-O {[%emt 0:01:31]} 9. Be3 {[%emt 0:00:26]} Na5 {[%emt 0:13:17]} 10. Ba2 {[%emt 0:00:19]} c5 {[%emt 0:00:21]} 11. Nd5 {[%emt 0:00:07]} Nc6 {[%emt 0:01:07]} 12. Qd2 {[%emt 0:00:07]} Kh7 {[%emt 0:00:54]} 13. Nxf6+ {[%emt 0:00:06]} Qxf6 {[%emt 0:00:54]} 14. Ng5+ {[%emt 0:00:06]} Kg8 {[%emt 0:00:28]} 15. c3 {[%emt 0:00:07]} Qe7 {[%emt 0:01:02]} 16. Nxf7 {[%emt 0:00:08]} Rxf7 {[%emt 0:00:23]} 17. Bxf7+ {[%emt 0:00:06]} Qxf7 {[%emt 0:00:46]} 18. Bxh6 {[%emt 0:00:05]} Be6 {[%emt 0:02:03]} 19. Bxg7 {[%emt 0:05:44]} Qxg7 {[%emt 0:00:08]} 20. f4 {[%emt 0:00:12]} Qh6 {[%emt 0:02:00]} 21. Rf2 {[%emt 0:24:42]} Rf8 {[%emt 0:04:11]} 22. Raf1 {[%emt 0:06:02]} Bb3 {[%emt 0:10:08]} 23. a5 {[%emt 0:11:14]} Nxa5 {[%emt 0:03:01]} 24. Qe2 {[%emt 0:00:14]} exf4 {[%emt 0:16:35]} 25. Qg4 {[%emt 0:00:05]} g5 {[%emt 0:00:34]} 26. Rxf4 {[%emt 0:02:09]} Rxf4 {[%emt 0:00:27]} 27. Rxf4 {[%emt 0:00:06]} Be6 {[%emt 0:00:06]} 28. Qg3 {[%emt 0:00:03]} Nc6 {[%emt 0:01:01]} 29. Rf1 {[%emt 0:01:37]} Ne5 {[%emt 0:05:37]} 30. d4 {[%emt 0:00:50]} cxd4 {[%emt 0:00:10]} 31. cxd4 {[%emt 0:00:05]} Nf7 {[%emt 0:00:18]} 32. e5 {[%emt 0:04:41]} dxe5 {[%emt 0:08:16]} 33. dxe5 {[%emt 0:00:05]} Qf8 {[%emt 0:07:07]} 34. Qe3 {[%emt 0:09:03]} b6 {[%emt 0:04:54]} 35. Rf6 {[%emt 0:03:10]} Qe7 {[%emt 0:00:18]} 36. Qe4 {[%emt 0:00:38]} Kf8 {[%emt 0:01:27]} 37. Qg6 {[%emt 0:03:47]} Qc5+ {[%emt 0:02:20]} 38. Kh1 {[%emt 0:00:29]} Qc1+ {[%emt 0:00:20]} 39. Kh2 {[%emt 0:00:08]} Qc4 {[%emt 0:00:06]} 40. Qxg5 {[%emt 0:13:30]} Ke7 {[%emt 0:00:41]} 41. Qg3 {[%emt 0:01:11]} Qd4 {[%emt 0:00:29]} 42. Qa3+ {[%emt 0:00:32]} Kd7 {[%emt 0:01:54]} 43. Qxa7+ {[%emt 0:00:07]} Kc8 {[%emt 0:00:22]} 44. Qa8+ {[%emt 0:00:24]} Kd7 {[%emt 0:00:07]} 45. Qb7+ {[%emt 0:00:05]} Kd8 {[%emt 0:00:08]} 46. Rxe6 {[%emt 0:00:07]} Qf4+ {[%emt 0:00:10]} 47. g3 {[%emt 0:00:05]} Qd2+ {[%emt 0:01:05]} 48. Qg2 {[%emt 0:00:06]} Qd3 {[%emt 0:00:09]} 49. Qa8+ {[%emt 0:00:19]} 1-0

[Event "SixDays Budapest March IM A 2025"]
[Site "Budapest"]
[Date "2025.03.25"]
[Round "3.4"]
[White "Md Imran"]
[Black "Kustar, Sandor"]
[Result "1-0"]
[Annotator "TA"]
[ECO "A05"]
[WhiteElo "2421"]
[BlackElo "2231"]
[PlyCount "87"]
[EventDate "2025.03.23"]
[EventCountry "HUN"]
[SourceTitle "playchess.com"]
[Source "ChessBase"]
[SourceQuality "1"]
[TimeControl "5400+30"]

{[%evp 18,87,12,-15,-19,-14,-8,-10,-5,-14,0,-14,-22,-31,-15,-37,-26,-47,-47,-53,6,0,0,0,0,0,0,0,44,41,36,31,53,37,19,4,0,-7,50,48,127,135,222,208,239,198,203,197,196,196,204,204,289,300,338,358,333,227,455,459,431,261,547,414,390,301,468,463,431,334,681,620]} 1. Nf3 {[%emt 0:00:05]} Nf6 {[%emt 0:00:30]} 2. c4 {[%emt 0:00:42]} b6 {[%emt 0:00:57]} 3. Nc3 {[%emt 0:00:14]} Bb7 {[%emt 0:00:16]} 4. d4 {[%emt 0:00:08]} e6 {[%emt 0:00:26]} 5. a3 {[%emt 0:00:06]} d5 {[%emt 0:00:30]} 6. cxd5 {[%emt 0:00:09]} Nxd5 {[%emt 0:00:28]} 7. e3 {[%emt 0:00:23]} g6 {[%emt 0:02:49]} 8. Bb5+ {[%emt 0:00:17]} c6 {[%emt 0:00:35]} 9. Bd3 {[%emt 0:00:07]} Bg7 {[%emt 0:00:28]} 10. e4 {[%emt 0:02:49]} Nxc3 {[%emt 0:00:29] E12: Queen's Indian: Unusual White 4th moves, 4 a3, 4 Nc3 Bb7 5 a3 and 4 Nc3 Bb7 .} 11. bxc3 {[%emt 0:00:02]} c5 {[%emt 0:01:58][%cal Rc5d4]} 12. O-O {[%emt 0:02:27]} O-O {[%emt 0:00:42][%cal Rc5d4] The position is equal.} 13. Bg5 {[%emt 0:05:36]} Qc7 {[%emt 0:03:51]} 14. Qa4 $146 {[%emt 0:13:05]} (14. Qe2 Nc6 15. e5 Na5 16. Be4 Bxe4 17. Qxe4 Qc6 18. Qh4 cxd4 19. cxd4 Rfc8 20. Bf6 {1-0 Mikaelyan,A (2508)-Barria Zuniga,D (2341) Titled Tuesday intern op 06th Feb Late blitz 2024 (4)}) 14... Nc6 {[%emt 0:05:06]} 15. Rfd1 {[%emt 0:00:29]} a6 {[%emt 0:08:05]} 16. Rac1 {[%emt 0:06:46]} b5 {[%emt 0:15:21]} 17. Qc2 {[%emt 0:00:37]} c4 {[%emt 0:01:54]} 18. Bf1 {[%emt 0:00:42]} Rae8 {[%emt 0:04:39]} (18... Na5 $15) 19. a4 {[%emt 0:02:51]} f5 {[%emt 0:00:58]} 20. axb5 {[%emt 0:01:55]} axb5 {[%emt 0:00:14]} 21. exf5 {[%emt 0:05:14]} Rxf5 {[%emt 0:00:36][%cal Oc6b4]} 22. Bh4 {[%emt 0:02:39]} Ne7 {[%emt 0:08:48]} 23. Bg3 {[%emt 0:01:01]} Qc6 {[%emt 0:00:13] [#] Hoping for ...Rxf3.} 24. Ne5 {[%emt 0:00:39]} Qd5 {[%emt 0:00:40]} 25. Rb1 {[%emt 0:00:37]} Bxe5 {[%emt 0:04:55]} 26. dxe5 {[%emt 0:05:49]} Qc5 {[%emt 0:00:19]} 27. Rd6 {[%emt 0:01:30]} Nc8 {[%emt 0:02:46]} (27... Rf7 $11) 28. Rd4 $36 {[%emt 0:01:29][%cal Of1c4][%mdl 2048] White has the initiative.} Ne7 {[%emt 0:00:12] Black is on the road to losing.} ({Better is} 28... Bd5 $14) 29. Bxc4 $1 $16 {[%emt 0:00:39]} Qc6 {[%emt 0:13:11]} (29... bxc4 $16 30. Rxb7 Rf7) 30. Bf1 $18 {[%emt 0:00:21] Active counter play!} (30. Rxb5 $2 Qxg2#) 30... Rc8 {[%emt 0:01:14]} 31. Rxb5 {[%emt 0:00:49]} (31. Bxb5 $2 Qxg2#) 31... Ba6 {[%emt 0:01:27]} 32. Rd6 {[%emt 0:02:24]} Bxb5 {[%emt 0:00:38]} 33. Rxc6 {[%emt 0:00:01]} Bxc6 {[%emt 0:00:01]} 34. Qb3 {[%emt 0:00:14]} Bd5 {[%emt 0:01:10]} (34... Nd5 35. h4 Rf7) 35. c4 {[%emt 0:00:18]} Ba8 {[%emt 0:00:58]} 36. Qa3 {[%emt 0:00:24]} Rf7 {[%emt 0:02:26]} 37. Bh4 {[%emt 0:03:17]} Nc6 {[%emt 0:00:31]} (37... Nf5) 38. Qd6 {[%emt 0:00:55]} Re8 {[%emt 0:00:42]} 39. h3 {[%emt 0:00:57][%cal Bh2h3,Bh3h4][%mdl 32]} Ra7 $2 {[%emt 0:01:20]} (39... Nb8 {was called for.} 40. Be2 Rd7) 40. Be2 {[%emt 0:00:55]} Kf7 {[%emt 0:00:11]} 41. Qd2 {[%emt 0:01:02] [#] aiming for Bf6.} Kg8 {[%emt 0:01:23]} (41... Ne7 $142 42. Bf6 Nf5) 42. Bf6 {[%emt 0:00:41]} Ne7 {[%emt 0:00:48]} 43. Kh2 {[%emt 0:00:46]} Nc6 $2 {[%emt 0:02:04]} (43... Nf5 44. Bg4 Ng7) 44. h4 {[%emt 0:00:25] Weighted Error Value: White=0.29 (precise) /Black=0.59  Mistake:       	---       	Black=9      Inaccurate:     	White=2     	Black=1      OK:         	White=11    	Black=12     Best:        	White=3     	Black=1      Strong:       	White=1     	---} 1-0

[Event "SixDays Budapest March IM A 2025"]
[Site "Budapest"]
[Date "2025.03.25"]
[Round "3.5"]
[White "Nakahara, Kan"]
[Black "Cu, Ivan Travis"]
[Result "1-0"]
[Annotator "TA"]
[ECO "B34"]
[WhiteElo "2113"]
[BlackElo "2286"]
[PlyCount "85"]
[EventDate "2025.03.23"]
[EventCountry "HUN"]
[SourceTitle "playchess.com"]
[Source "ChessBase"]
[SourceQuality "1"]
[TimeControl "5400+30"]

{[%evp 12,85,0,0,0,-21,-7,-10,0,0,0,-12,-10,-44,-32,-37,-31,-37,-30,-41,-14,-26,-24,-20,-29,-28,0,-39,-36,-32,0,0,0,0,0,0,0,0,0,0,3,9,5,11,116,0,57,0,123,134,114,114,151,145,112,118,207,191,554,604,597,595,582,572,699,471,471,484,474,469,471,488,488,488,950,932]} 1. e4 {[%emt 0:00:03]} c5 {[%emt 0:00:31]} 2. Nf3 {[%emt 0:00:06]} g6 {[%emt 0:00:24]} 3. d4 {[%emt 0:01:51]} cxd4 {[%emt 0:00:11]} 4. Nxd4 {[%emt 0:00:08]} Nc6 {[%emt 0:00:25]} 5. Nxc6 {[%emt 0:04:49]} bxc6 {[%emt 0:02:13]} 6. Qd4 {[%emt 0:03:06]} Nf6 {[%emt 0:00:41]} 7. e5 {[%emt 0:01:03]} Nd5 {[%emt 0:00:32] B34: Sicilian: Accelerated Dragon with 5 Nc3: sidelines.} 8. e6 {[%emt 0:01:58]} Nf6 {[%emt 0:02:08]} 9. exd7+ {[%emt 0:00:44]} Qxd7 {[%emt 0:03:20] The position is equal.} 10. Qxd7+ {[%emt 0:01:31]} Bxd7 {[%emt 0:01:49]} 11. Nd2 $146 {[%emt 0:05:15] Not much happening anymore} (11. g3 Bg7 12. Bg2 O-O 13. O-O Rab8 14. Nd2 Rfd8 15. Nb3 Nd5 16. c3 Be8 17. Re1 {0-1 Makhmudov,S (2115)-Perez Candelario,M (2573) Titled Tuesday intern op 11th Jul Early blitz 2023 (1)}) 11... Bg7 {[%emt 0:01:02]} 12. Nb3 {[%emt 0:05:38]} Nd5 {[%emt 0:01:19]} 13. c3 {[%emt 0:06:38] Repels Nb4} a5 {[%emt 0:01:40]} 14. a4 {[%emt 0:18:21]} O-O {[%emt 0:01:35][%cal Od5c3]} 15. Bc4 {[%emt 0:04:31]} Nb6 {[%emt 0:13:00]} 16. Be2 {[%emt 0:04:16]} Be6 {[%emt 0:01:07]} 17. Nc5 {[%emt 0:01:53]} Bd5 {[%emt 0:00:35]} 18. O-O {[%emt 0:01:04]} Rfb8 {[%emt 0:01:11]} 19. Bf4 {[%emt 0:10:30]} e5 {[%emt 0:01:44]} 20. Be3 {[%emt 0:03:46]} Nc4 {[%emt 0:06:59]} 21. Bxc4 {[%emt 0:00:32]} Bxc4 {[%emt 0:00:08]} 22. Rfb1 {[%emt 0:00:11]} Bd5 {[%emt 0:03:12]} 23. Nd7 {[%emt 0:05:20]} Rb7 {[%emt 0:06:30]} 24. Nc5 {[%emt 0:00:56]} Rbb8 {[%emt 0:12:13]} 25. Nd7 {[%emt 0:00:32]} Rd8 {[%emt 0:06:08]} 26. Nb6 {[%emt 0:02:41]} Rab8 {[%emt 0:00:46]} 27. b4 {[%emt 0:03:07][%cal Bb2b4,Bb4a5,Ba5a6][%mdl 32]} e4 {[%emt 0:09:00]} (27... Be4 $11 28. Rd1 Bd3) 28. Ra3 {[%emt 0:01:05]} (28. bxa5 $16 {Black must now prevent a6.} Bxc3 29. a6) 28... Bf8 {[%emt 0:00:19]} ({Black should play} 28... Be6 $11) 29. Raa1 {[%emt 0:00:29]} (29. h3 $14) 29... Be6 {[%emt 0:02:58]} (29... Bg7 $1 $11 {keeps the balance.}) 30. bxa5 $16 {[%emt 0:02:56][%csl Oa5] White has a strong passed pawn} Rb7 {[%emt 0:00:07] [#]} 31. a6 $1 {[%emt 0:02:07]} Rc7 {[%emt 0:07:32]} 32. a5 {[%emt 0:00:44]} c5 {[%emt 0:01:20]} 33. Na4 $36 {[%emt 0:01:25][%mdl 2048] Black is under strong pressure.} Ra8 {[%emt 0:00:31] [#]} (33... Bc4 $16) 34. Rb7 $1 $18 {[%emt 0:00:29]} Rc6 {[%emt 0:03:41]} (34... Bd6 {is tougher.} 35. Rb6 (35. Rxc7 Bxc7 36. Nxc5 Bc4 $18) 35... Bf8) 35. a7 {[%emt 0:01:06] White is clearly winning.} Bc8 {[%emt 0:03:08]} 36. Rb8 {[%emt 0:00:53]} Rxa7 {[%emt 0:00:05]} 37. Nb6 {[%emt 0:00:17]} Rd6 {[%emt 0:05:26][%cal Oa7a5]} 38. h3 {[%emt 0:03:24]} Rxa5 39. Rxa5 {[%emt 0:00:02]} Rd1+ {[%emt 0:02:18]} 40. Kh2 {[%emt 0:00:04]} Bd6+ {[%emt 0:00:00]} 41. g3 {[%emt 0:00:30]} Bxb8 {[%emt 0:00:08]} 42. Nxc8 {[%emt 0:00:13]} c4 {[%emt 0:00:40]} (42... f5 $142 43. Kg2 (43. Bxc5 f4 $18) (43. Rxc5 Rb1 $18) 43... Kf7 44. Rxc5 Ke6) 43. Ra8 {[%emt 0:01:34] Weighted Error Value: White=0.20 (precise) /Black=0.47  Mistake:       	White=2     	Black=6      Inaccurate:     	White=3     	Black=4      OK:         	White=15    	Black=15     Best:        	White=5     	Black=3      Strong:       	White=2     	---} 1-0